fUSD/lending_fUSD_20250906
["ID","MTS","AMOUNT","RATE_DAILY","PERIOD"]
[383887171,1757157037963,-168.0,0.00039157,7]
[383887172,1757157037975,-152.44,0.00039203,2]
[383887173,1757157037985,-250.0,0.00039281,2]
[383887174,1757157037994,-168.0,0.00039332,2]
[383887175,1757157038004,-666.0,0.00039381,3]
[383887176,1757157038014,-3091.62,0.00039484,2]
[383887177,1757157038024,-150.99,0.00039484,2]
[383887178,1757157038033,-619.75288205,0.00039536,33]
[383887179,1757157038042,-166.92,0.00039594,120]
[383887180,1757157038053,-221.20299248,0.00039677,2]
[383887181,1757157038063,-160.0,0.00039727,7]
[383887182,1757157038073,-1234.0,0.0003974,2]
[383887183,1757157038083,-1434.0,0.00039784,2]
[383887184,1757157038092,-398.0,0.00039982,2]
[383887185,1757157038102,-168.0,0.00040268,7]
[383887186,1757157038112,-152.44,0.00040323,2]
[383887188,1757157038121,-168.0,0.00040351,2]
[383887190,1757157038130,-168.0,0.00040464,2]
[383887192,1757157038140,-168.0,0.00040485,2]
[383887194,1757157038149,-5000.0,0.00040623,120]
[383887196,1757157038160,-168.0,0.00040635,7]
[383887198,1757157038169,-175.8,0.00040884,120]
[383887200,1757157038179,-168.0,0.00040888,2]
[383887202,1757157038191,-168.0,0.00041001,7]
[383887204,1757157038200,-168.0,0.00041031,2]
[383887206,1757157038211,-391.34265813,0.000411,2]
[383887208,1757157038220,-312.81,0.00041167,120]
[383887210,1757157038230,-168.0,0.00041313,2]
[383887212,1757157038240,-19.7166654,0.00041443,2]
[383887215,1757157038259,-132.7233346,0.00041443,2]
[383887217,1757157038269,-500.0,0.00041462,30]
[383887220,1757157038279,-164.81699276,0.00041533,120]
[383887228,1757157038351,-3.18300724,0.00041533,120]
[383887230,1757157038361,-168.0,0.00041698,2]
[383887232,1757157038370,-168.0,0.00041759,120]
[383887234,1757157038380,-168.0,0.00041777,2]
[383887236,1757157038390,-18.54860248,0.00041869,2]
[383887310,1757157039103,-37.80038833,0.00041869,2]
[383887407,1757157040041,-108.19100919,0.00041869,2]
[383887409,1757157040052,-500.0,0.00041964,30]
[383887411,1757157040060,-500.0,0.00042134,30]
[383887413,1757157040069,-168.0,0.00042277,2]
[383887415,1757157040078,-156.48,0.00042295,2]
[383887417,1757157040087,-191.84,0.00042295,2]
[383887419,1757157040096,-168.0,0.00042299,2]
[383887421,1757157040105,-500.0,0.0004236,30]
[383887423,1757157040115,-164.09383144,0.00042364,2]
[383887425,1757157040124,-371.62443285,0.00042463,39]
[383887427,1757157040137,-248.1284492,0.00042463,39]
[383887429,1757157040147,-168.0,0.00042466,2]
[383887431,1757157040156,-152.44,0.00042563,2]
[383887433,1757157040166,-168.0,0.00042601,2]
[383887435,1757157040176,-168.0,0.00042758,120]
[383887437,1757157040186,-250.0,0.00042777,120]
[383887440,1757157040197,-391.0,0.0004282,30]
[383887442,1757157040207,-200.0,0.0004301,2]
[383887444,1757157040216,-200.0,0.00043041,2]
[383887446,1757157040226,-846.33286217,0.0004306,2]
[383887448,1757157040237,-157.13713783,0.0004306,2]
[383887450,1757157040247,-500.0,0.00043503,30]
[383887452,1757157040256,-500.0,0.00043661,30]
[383887454,1757157040266,-500.0,0.00043837,30]
[383887456,1757157040276,-2119.35720862,0.00044,120]
[383887458,1757157040286,-2.40406156,0.0004441,2]
[383887740,1757157043180,-114.48076714,0.00040535,2]
[383888009,1757157045882,-151.26619555,0.00040535,2]
[383888011,1757157045892,-265.74696267,0.00044218,2]
[383888013,1757157045902,-189.43593844,0.0004441,2]
[383888015,1757157045913,-150.0,0.00045,7]
[383888017,1757157045924,-150.00000001,0.00045,7]
[383888020,1757157045938,-150.0,0.00045,7]
[383888022,1757157045949,-150.0,0.00045,7]
[383888024,1757157045959,-150.0,0.00045,7]
[383888026,1757157045969,-150.00000001,0.00045,7]
[383888028,1757157045980,-619.75288205,0.00045391,46]
[383888030,1757157045990,-500.0,0.00046049,30]
[383888032,1757157046000,-312.81,0.00046313,120]
[383888034,1757157046009,-191.84,0.00046525,2]
[383888036,1757157046019,-500.0,0.00046685,2]
[383888038,1757157046029,-1425.0,0.00047162,7]
[383888040,1757157046039,-1425.0,0.00047302,7]
[383888042,1757157046050,-1425.0,0.00047349,7]
[383888044,1757157046059,-16689.01228918,0.000474,120]
[383888172,1757157055495,182.7974761,0.00032122,2]
[383888174,1757157122457,454.48544703,0.000249,2]
[383888175,1757157122507,454.48544683,0.00027827,8]
[383888176,1757157122579,454.48544683,0.00030754,14]
[383888177,1757157122652,454.48544683,0.00033682,21]
[383888178,1757157292863,-211.84866472,0.00018344,2]
[383888179,1757157295308,-149.15133528,0.00018344,2]
[383888180,1757157370579,150.0,0.0002739,120]
[383888181,1757157370745,150.0,0.00026364,120]
[383888182,1757157431010,195.0,0.0002739,120]
[383888183,1757157431555,195.0,0.00026364,120]
[383888184,1757157432151,300.0,0.0002739,120]
[383888185,1757157432342,300.0,0.00026364,120]
[383888186,1757157485061,500.0,0.0002739,120]
[383888187,1757157485205,500.0,0.00026364,120]
[383888188,1757157485640,300.0,0.0002739,120]
[383888189,1757157485790,300.0,0.00026364,120]
[383888190,1757157663867,500.0,0.0002739,120]
[383888191,1757157664039,500.0,0.00026364,120]
[383888192,1757157666672,2500.0,0.0002739,120]
[383888193,1757157666875,2500.0,0.00026364,120]
[383888194,1757157667679,300.0,0.0002739,120]
[383888195,1757157667882,300.0,0.00026364,120]
[383888196,1757157668052,300.0,0.00029544,120]
[383888198,1757157722797,150.0,0.0002739,120]
[383888203,1757157920319,6576.47263944,9e-05,2]
[383888204,1757157937838,4863.52736056,9e-05,2]
[383888212,1757157973002,-159.42,0.00019311,2]
[383888213,1757158107770,150.0,0.00038435,75]
[383888214,1757158126671,388.57419555,0.00038435,120]
[383888215,1757158146148,-4760.95182488,0.0002,2]
[383888216,1757158149127,-29978.3274,0.0002,2]
[383888217,1757158151096,-11658.6980931,0.0002,2]
[383888218,1757158153149,-27198.04716129,0.0002,2]
[383888219,1757158153170,-148.84280443,0.00020555,2]
[383888220,1757158154101,-1899.89208306,0.00020555,2]
[383888221,1757158154122,-159.552256,0.00020973,2]
[383888222,1757158154142,-500.0,0.00020973,2]
[383888223,1757158154165,-500.0,0.00020999,2]
[383888224,1757158154188,-500.0,0.00020999,2]
[383888225,1757158154210,-500.0,0.00020999,2]
[383888226,1757158154232,-500.0,0.00020999,2]
[383888227,1757158154254,-500.0,0.00020999,2]
[383888228,1757158154276,-500.0,0.00020999,2]
[383888229,1757158154299,-500.0,0.00020999,2]
[383888230,1757158154322,-500.0,0.00020999,2]
[383888231,1757158154344,-327.86050124,0.00020999,2]
[383888232,1757158154366,-500.0,0.00020999,2]
[383888233,1757158154388,-500.0,0.00020999,2]
[383888234,1757158154410,-500.0,0.00020999,2]
[383888235,1757158154441,-500.0,0.00020999,2]
[383888236,1757158154464,-500.0,0.00020999,2]
[383888237,1757158154487,-500.0,0.00020999,2]
[383888238,1757158154511,-500.0,0.00020999,2]
[383888239,1757158154533,-369.76227791,0.00020999,2]
[383888240,1757158154557,-24390.02724179,0.00021,2]
[383888241,1757158167104,-393.19863334,0.00021,2]
[383888246,1757158232101,-500.0,0.00020973,2]
[383888247,1757158232113,-500.0,0.00020973,2]
[383888248,1757158232125,-1200.0,0.00020999,2]
[383888249,1757158232136,-300.0,0.00020999,2]
[383888250,1757158232148,-200.0,0.00020999,2]
[383888251,1757158232159,-18865.01428203,0.00021,2]
[383888304,1757158238483,-6334.59605694,0.00021,2]
[383888305,1757158238495,-8904.85159913,0.00021,2]
[383888306,1757158238505,-159.42,0.00022069,2]
[383888307,1757158238514,-300.0,0.00022842,2]
[383888308,1757158238524,-1200.0,0.00022951,2]
[383888309,1757158238534,-159.42,0.00024828,2]
[383888310,1757158238544,-393.88738733,0.000249,2]
[383888311,1757158238553,-1807.82063005,0.00025526,2]
[383888312,1757158238565,-4566.82043825,0.00025526,2]
[383888313,1757158238576,-8339.28591038,0.000258,7]
[383888314,1757158238599,-1323.27193725,0.000258,7]
[383888315,1757158238628,-1195.72637044,0.000258,7]
[383888316,1757158240262,-144.44870102,0.000258,7]
[383888318,1757158240556,-558.39391235,0.000258,7]
[383888319,1757158240566,-159.42,0.00027587,2]
[383888320,1757158240575,-393.88738725,0.00027827,8]
[383888321,1757158240585,-6374.6410683,0.00028736,2]
[383888322,1757158240594,-159.42,0.00030345,2]
[383888323,1757158240603,-393.88738725,0.00030754,14]
[383888324,1757158240613,-589.886855,0.00031,2]
[383888325,1757158240623,-399.999999,0.0003121,2]
[383888326,1757158240633,-6374.6410683,0.00031946,2]
[383888327,1757158240643,-232.81,0.00033095,120]
[383888328,1757158240652,-159.42,0.00033104,2]
[383888329,1757158240662,-500.0,0.00033357,5]
[383888330,1757158240671,-500.0,0.00033357,5]
[383888331,1757158240681,-393.88738725,0.00033682,21]
[383888332,1757158240690,-168.78064932,0.00033905,5]
[383888333,1757158240700,-200.0,0.00034202,2]
[383888334,1757158240711,-161.16,0.00034202,2]
[383888335,1757158240720,-6374.6410683,0.00035156,2]
[383888336,1757158240730,-155.863598,0.00035616,10]
[383888337,1757158240739,-158.126981,0.00035616,10]
[383888338,1757158240749,-153.520057,0.00035616,10]
[383888339,1757158240758,-159.42,0.00035863,2]
[383888340,1757158240767,-393.88738725,0.00036609,27]
[383888341,1757158240778,-232.81,0.00037232,120]
[383888342,1757158240787,-500.0,0.00037751,7]
[383888343,1757158240796,-153.0,0.00038,120]
[383888344,1757158240806,-5269.35937837,0.00038,7]
[383888345,1757158240815,-189.13763185,0.00038336,2]
[383888346,1757158240825,-281.97349284,0.00038336,2]
[383888347,1757158240834,-450.00000002,0.00038378,30]
[383888348,1757158240844,-849.22,0.00038426,2]
[383888349,1757158240853,-849.22,0.00038426,2]
[383888350,1757158240863,-849.22,0.00038426,2]
[383888351,1757158240872,-849.22,0.00038426,2]
[383888352,1757158240881,-849.22,0.00038426,2]
[383888353,1757158240891,-236.52234695,0.00038435,15]
[383888354,1757158240902,-500.0,0.00038435,15]
[383888355,1757158240911,-8012.28380009,0.00038436,5]
[383888356,1757158240922,-6358.38226663,0.00038436,2]
[383888377,1757158246094,-2965.32,0.00038436,2]
[383888378,1757158246382,-15.03787898,0.00038436,2]
[383888381,1757158377065,5100.0,0.00038436,37]
[383888382,1757158624777,300.0,0.0002739,120]
[383888383,1757158625194,300.0,0.00026364,120]
[383888384,1757158641826,500.0,0.0003,120]
[383888385,1757158679314,1090.0,0.0003,120]
[383888386,1757158711495,1000.0,0.0003,120]
[383888387,1757158745230,500.0,0.0002739,120]
[383888388,1757158745470,500.0,0.00026364,120]
[383888389,1757158746340,300.0,0.0002739,120]
[383888390,1757158747130,195.0,0.0002739,120]
[383888391,1757158765248,200.62865102,0.00038425,120]
[383888392,1757158809813,300.0,0.0002739,120]
[383888393,1757158929483,17395.0,0.0003841,30]
[383888394,1757158940046,267.81,0.00018139,2]
[383888395,1757158941613,-230.76185178,0.00019094,2]
[383888396,1757158944430,-37.04814822,0.00019094,2]
[383888397,1757159142425,-192.32058689,0.00020048,2]
[383888398,1757159148141,-75.48941311,0.00020048,2]
[383888399,1757159148165,-267.81,0.00021003,2]
[383888400,1757159148188,-197.947181,0.00021958,2]
[383888401,1757159232375,-69.862819,0.00021958,2]
[383888402,1757159232396,-300.0,0.00022053,2]
[383888403,1757159232422,-161.20618087,0.00022053,2]
[383888404,1757159354087,-338.79381913,0.00022053,2]
[383888405,1757159354109,-267.81,0.00022912,2]
[383888406,1757159354132,-96.33776427,0.00023867,2]
[383888407,1757159359096,-171.47223573,0.00023867,2]
[383888408,1757159359122,-163.52558537,0.000248,2]
[383888409,1757159359151,-267.81,0.00024822,2]
[383888410,1757159359180,-602.1490022,0.000249,2]
[383888411,1757159359204,-151.0,0.000249,2]
[383888412,1757159359231,-156.587,0.00025448,2]
[383888413,1757159359259,-267.81,0.00025777,2]
[383888414,1757159359283,-162.380719,0.00025996,2]
[383888415,1757159359310,-168.3888056,0.00026544,2]
[383888416,1757159359340,-267.81,0.00026731,2]
[383888417,1757159359366,-174.61919141,0.00027092,2]
[383888418,1757159359392,-181.08010149,0.0002764,2]
[383888419,1757159359417,-267.81,0.00027686,2]
[383888420,1757159359445,-602.14900214,0.00027827,8]
[383888421,1757159359469,-187.78006525,0.00028188,2]
[383888422,1757159359495,-267.81,0.00028641,2]
[383888423,1757159359517,-174.68087687,0.00028736,2]
[383888424,1757159359545,-267.81,0.00029595,2]
[383888425,1757159359570,-209.47554511,0.0003055,2]
[383888426,1757159360159,-58.33445489,0.0003055,2]
[383888427,1757159360187,-602.14900214,0.00030754,14]
[383888428,1757159360214,-267.81,0.00031505,2]
[383888429,1757159360243,-300.0,0.00032,120]
[383888430,1757159360270,-626.93352622,0.00032459,3]
[383888431,1757159400597,209.63012132,0.000249,2]
[383888433,1757159432197,-332.30398078,0.000249,2]
[383888434,1757159432209,-541.93410192,0.00027827,8]
[383888435,1757159432220,-541.93410192,0.00030754,14]
[383888436,1757159432232,-267.81,0.00032459,2]
[383888437,1757159432243,-163.52558537,0.00032729,2]
[383888438,1757159432256,-400.0,0.00032828,3]
[383888439,1757159432268,-400.0,0.00032828,2]
[383888440,1757159432280,-400.0,0.00032828,3]
[383888441,1757159432292,-1600.0,0.00032828,3]
[383888442,1757159432305,-1635.624796,0.00032829,2]
[383888443,1757159432315,-867.0143925,0.00032829,2]
[383888444,1757159432325,-491.3607781,0.00032829,2]
[383888445,1757159432336,-2000.0,0.000329,2]
[383888446,1757159432347,-5237.4351584,0.0003296,2]
[383888447,1757159432357,-267.81,0.00033414,2]
[383888448,1757159432374,-541.93410192,0.00033682,21]
[383888449,1757159432391,-200.0,0.00033694,2]
[383888450,1757159432401,-11613.03,0.00033732,2]
[383888451,1757159432412,-884.87,0.00033849,120]
[383888452,1757159432423,-250.0,0.00033866,2]
[383888453,1757159432434,-375.12159471,0.0003388,2]
[383888454,1757159432448,-1304.83079736,0.0003388,2]
[383888455,1757159432494,-672.01287773,0.0003388,2]
[383888456,1757159432528,-1884.3747302,0.0003388,2]
[383888457,1757159432538,-161.14,0.00033909,2]
[383888458,1757159432549,-250.0,0.00034,120]
[383888459,1757159432559,-5000.0,0.00034009,2]
[383888460,1757159432569,-150.0,0.00034035,2]
[383888463,1757159432579,-1215.53006569,0.0003421,2]
[383888466,1757159432610,-372.13254803,0.0003421,2]
[383888492,1757159438196,-1154.08880777,0.0003421,2]
[383888493,1757159438340,-59.00766658,0.0003421,2]
[383888494,1757159438376,-3551.20091193,0.0003421,2]
[383888495,1757159438386,-789.29718615,0.00034219,2]
[383888496,1757159438396,-267.81,0.00034369,2]
[383888497,1757159438406,-1216.34,0.0003464,2]
[383888498,1757159438416,-150.0,0.00034744,2]
[383888499,1757159438425,-623.6109693,0.00035006,2]
[383888500,1757159438436,-453.0,0.00035278,3]
[383888501,1757159438445,-560.0,0.00035278,3]
[383888502,1757159438455,-267.81,0.00035323,2]
[383888503,1757159438465,-1529.0,0.00035422,3]
[383888504,1757159438475,-154.608891,0.00035616,10]
[383888505,1757159438485,-158.126981,0.00035616,10]
[383888506,1757159438495,-155.863598,0.00035616,10]
[383888507,1757159438504,-500.0,0.00035616,120]
[383888509,1757159438514,-500.0,0.00035616,120]
[383888510,1757159438525,-500.0,0.00035616,120]
[383888511,1757159438535,-500.0,0.00035616,120]
[383888512,1757159438544,-500.0,0.00035616,120]
[383888513,1757159438554,-500.0,0.00035616,120]
[383888514,1757159438564,-500.0,0.00035616,120]
[383888515,1757159438573,-632.85600143,0.00035616,120]
[383888516,1757159438583,-251.27,0.0003599,2]
[383888517,1757159438592,-500.0,0.0003599,2]
[383888518,1757159438601,-150.0,0.0003599,2]
[383888519,1757159438611,-204.47957427,0.0003599,2]
[383888520,1757159438620,-300.0,0.00036,120]
[383888521,1757159438630,-250.0,0.00036,120]
[383888522,1757159438640,-200.0,0.00036004,2]
[383888523,1757159438650,-600.0,0.00036004,2]
[383888524,1757159438659,-500.0,0.00036004,2]
[383888525,1757159438669,-600.0,0.00036004,2]
[383888526,1757159438678,-500.0,0.00036004,2]
[383888527,1757159438688,-600.0,0.00036004,2]
[383888528,1757159438698,-500.0,0.00036004,2]
[383888529,1757159438707,-500.0,0.00036004,2]
[383888530,1757159438716,-600.0,0.00036004,2]
[383888531,1757159438726,-500.0,0.00036004,2]
[383888532,1757159438735,-600.0,0.00036004,2]
[383888533,1757159438745,-500.0,0.00036004,2]
[383888534,1757159438754,-600.0,0.00036004,2]
[383888535,1757159438764,-500.0,0.00036004,2]
[383888536,1757159438773,-600.0,0.00036004,2]
[383888537,1757159438783,-500.0,0.00036004,2]
[383888538,1757159438793,-500.0,0.00036004,2]
[383888539,1757159438802,-500.0,0.00036004,2]
[383888540,1757159438811,-500.0,0.00036004,2]
[383888541,1757159438820,-500.0,0.00036004,2]
[383888542,1757159438830,-200.0,0.00036004,2]
[383888543,1757159438839,-200.0,0.00036004,2]
[383888544,1757159438848,-197.87762863,0.00036004,2]
[383888545,1757159438858,-151.0,0.00036004,2]
[383888546,1757159438867,-151.0,0.00036004,2]
[383888547,1757159438877,-151.0,0.00036004,2]
[383888548,1757159438886,-151.0,0.00036004,2]
[383888549,1757159438895,-151.0,0.00036004,2]
[383888550,1757159438905,-151.0,0.00036004,2]
[383888551,1757159438914,-151.0,0.00036004,2]
[383888552,1757159438923,-151.0,0.00036004,2]
[383888553,1757159438933,-151.0,0.00036004,2]
[383888554,1757159438942,-151.0,0.00036004,2]
[383888555,1757159438952,-151.0,0.00036004,2]
[383888556,1757159438964,-151.0,0.00036004,2]
[383888557,1757159438974,-151.0,0.00036004,2]
[383888558,1757159438983,-11705.71,0.00036026,2]
[383888559,1757159438992,-500.0,0.00036059,2]
[383888560,1757159439002,-500.0,0.00036073,5]
[383888561,1757159439013,-500.0,0.00036073,5]
[383888562,1757159439022,-357.09093717,0.00036073,5]
[383888563,1757159439031,-160.0,0.0003609,7]
[383888564,1757159439042,-2653.15,0.00036103,2]
[383888565,1757159439052,-459.617,0.00036103,44]
[383888566,1757159439061,-500.0,0.00036114,2]
[383888567,1757159439070,-200.0,0.00036162,2]
[383888568,1757159439079,-500.0,0.00036169,2]
[383888569,1757159439088,-776.54,0.00036199,2]
[383888570,1757159439098,-500.0,0.00036224,2]
[383888571,1757159439108,-500.0,0.00036264,2]
[383888572,1757159439118,-267.81,0.00036278,2]
[383888573,1757159439127,-500.0,0.00036279,2]
[383888574,1757159439136,-500.0,0.00036334,2]
[383888575,1757159439146,-500.0,0.00036389,2]
[383888576,1757159439156,-164.83,0.00036435,30]
[383888577,1757159439165,-500.0,0.00036444,2]
[383888578,1757159439174,-500.0,0.00036499,2]
[383888579,1757159439183,-500.0,0.00036506,15]
[383888580,1757159439195,-500.0,0.00036506,15]
[383888581,1757159439204,-163.64650858,0.00036506,15]
[383888582,1757159439213,-500.0,0.00036506,15]
[383888583,1757159439223,-5352.28,0.00036508,2]
[383888584,1757159439233,-500.0,0.00036538,2]
[383888585,1757159439242,-5237.4351584,0.00036541,2]
[383888586,1757159439252,-200.0,0.00036552,2]
[383888587,1757159439261,-200.0,0.00036552,2]
[383888588,1757159439270,-491.3607781,0.00036552,2]
[383888589,1757159439280,-500.0,0.00036554,2]
[383888590,1757159439291,-500.0,0.00036573,5]
[383888591,1757159439300,-500.0,0.00036573,5]
[383888592,1757159439310,-269.49615147,0.00036573,5]
[383888593,1757159439320,-500.0,0.00036573,2]
[383888594,1757159439331,-500.95748089,0.00036573,5]
[383888595,1757159439341,-221.36490661,0.00036573,5]
[383888596,1757159439350,-500.0,0.00036573,5]
[383888597,1757159439361,-1147.0,0.000366,2]
[383888598,1757159439370,-541.93410192,0.00036609,27]
[383888599,1757159439379,-500.0,0.00036609,2]
[383888600,1757159439389,-1000.0,0.00036621,5]
[383888601,1757159439398,-867.0143925,0.00036622,2]
[383888602,1757159439408,-1635.624796,0.00036654,2]
[383888603,1757159439417,-500.0,0.00036664,2]
[383888604,1757159439427,-500.0,0.00036812,2]
[383888605,1757159439436,-500.0,0.00037086,2]
[383888606,1757159439446,-200.0,0.000371,2]
[383888607,1757159439455,-200.0,0.000371,2]
[383888608,1757159439465,-1000.0,0.00037121,5]
[383888609,1757159439476,-502.63330034,0.00037121,2]
[383888610,1757159439485,-500.0,0.00037121,5]
[383888611,1757159439496,-500.0,0.00037168,5]
[383888612,1757159439507,-152.59431912,0.000372,120]
[383888613,1757159439518,-432.0,0.0003736,2]
[383888614,1757159439528,-168.97,0.00037453,2]
[383888615,1757159439538,-862.50040803,0.00037638,2]
[383888616,1757159439548,-200.0,0.00037648,2]
[383888617,1757159439559,-200.0,0.00037648,2]
[383888618,1757159439568,-1500.0,0.00037668,5]
[383888619,1757159439578,-862.50040803,0.00037852,2]
[383888620,1757159439588,-299.0,0.00037911,3]
[383888621,1757159439599,-151.0,0.00038,120]
[383888622,1757159439610,-300.0,0.00038,120]
[383888623,1757159439620,-160.0,0.00038,120]
[383888624,1757159439630,-776.54,0.00038009,2]
[383888625,1757159439639,-500.0,0.00038054,7]
[383888626,1757159439651,-11452.12378734,0.0003806,2]
[383888627,1757159439662,-500.0,0.00038073,5]
[383888628,1757159439671,-500.0,0.00038073,5]
[383888629,1757159439683,-500.0,0.00038073,5]
[383888630,1757159439694,-159.5506592,0.00038073,5]
[383888631,1757159439704,-159.552256,0.00038073,5]
[383888632,1757159439714,-500.0,0.00038073,5]
[383888633,1757159439725,-500.0,0.00038073,5]
[383888634,1757159439734,-500.0,0.00038073,5]
[383888635,1757159439744,-884.87,0.0003808,120]
[383888636,1757159439754,-200.0,0.00038196,2]
[383888637,1757159439764,-200.0,0.00038196,2]
[383888638,1757159439773,-2000.0,0.00038216,5]
[383888639,1757159439783,-2500.0,0.00038309,2]
[383888640,1757159439793,-1624.88707389,0.00038309,2]
[383888641,1757159439802,-1905.66900328,0.00038309,10]
[383888642,1757159439812,-527.02071312,0.00038309,2]
[383888643,1757159439822,-1000.0,0.0003831,2]
[383888644,1757159439831,-1666.4776,0.0003831,2]
[383888645,1757159439840,-862.50040803,0.00038319,2]
[383888646,1757159439850,-1000.0,0.00038336,2]
[383888647,1757159439860,-189.13763185,0.00038336,2]
[383888648,1757159439870,-500.0,0.00038402,2]
[383888649,1757159439881,-150.0,0.00038402,2]
[383888650,1757159439891,-500.0,0.00038402,2]
[383888651,1757159439900,-480.0,0.00038402,2]
[383888652,1757159439910,-150.0,0.00038402,2]
[383888653,1757159439921,-226.59999693,0.00038406,14]
[383888654,1757159439931,-165.56564287,0.00038408,15]
[383888655,1757159439941,-489402.43109457,0.00038409,2]
[383888656,1757159439952,-500.0,0.00038409,5]
[383888657,1757159439972,-150.0,0.00038409,15]
[383888658,1757159439983,-150.0,0.00038409,15]
[383888659,1757159439993,-150.0,0.00038409,15]
[383888660,1757159440002,-150.0,0.00038409,15]
[383888661,1757159440012,-150.0,0.00038409,15]
[383888662,1757159440023,-500.0,0.00038409,15]
[383888663,1757159440032,-894.2154262,0.00038409,30]
[383888664,1757159440042,-160.0,0.00038409,14]
[383888665,1757159440052,-160.0,0.00038409,14]
[383888666,1757159440062,-160.0,0.00038409,14]
[383888668,1757159440350,-160.0,0.00038409,14]
[383888669,1757159440360,-160.0,0.00038409,14]
[383888670,1757159440370,-160.0,0.00038409,14]
[383888671,1757159440379,-160.0,0.00038409,14]
[383888672,1757159440391,-160.0,0.00038409,14]
[383888673,1757159440402,-160.0,0.00038409,14]
[383888674,1757159440411,-160.0,0.00038409,14]
[383888675,1757159440421,-160.0,0.00038409,14]
[383888676,1757159440433,-160.0,0.00038409,14]
[383888677,1757159440444,-160.0,0.00038409,14]
[383888678,1757159440454,-160.0,0.00038409,14]
[383888679,1757159440464,-160.0,0.00038409,14]
[383888680,1757159440474,-160.0,0.00038409,14]
[383888681,1757159440484,-160.0,0.00038409,14]
[383888682,1757159440493,-160.0,0.00038409,14]
[383888683,1757159440503,-160.0,0.00038409,14]
[383888684,1757159440512,-160.0,0.00038409,14]
[383888685,1757159440521,-160.0,0.00038409,14]
[383888686,1757159440531,-160.0,0.00038409,14]
[383888687,1757159440541,-160.0,0.00038409,14]
[383888688,1757159440552,-160.0,0.00038409,14]
[383888689,1757159440563,-160.0,0.00038409,14]
[383888690,1757159440572,-160.0,0.00038409,14]
[383888691,1757159440581,-160.0,0.00038409,14]
[383888692,1757159440590,-160.0,0.00038409,14]
[383888693,1757159440599,-160.0,0.00038409,14]
[383888694,1757159440608,-160.0,0.00038409,14]
[383888695,1757159440617,-160.0,0.00038409,14]
[383888696,1757159440628,-160.0,0.00038409,14]
[383888697,1757159440638,-160.0,0.00038409,14]
[383888698,1757159440648,-160.0,0.00038409,14]
[383888699,1757159440657,-160.0,0.00038409,14]
[383888700,1757159440667,-160.0,0.00038409,14]
[383888701,1757159440676,-160.0,0.00038409,14]
[383888702,1757159440685,-160.0,0.00038409,14]
[383888703,1757159440695,-160.0,0.00038409,14]
[383888704,1757159440703,-160.0,0.00038409,14]
[383888705,1757159440713,-160.0,0.00038409,14]
[383888706,1757159440722,-160.0,0.00038409,14]
[383888707,1757159440732,-160.0,0.00038409,14]
[383888708,1757159440742,-160.0,0.00038409,14]
[383888709,1757159440752,-160.0,0.00038409,14]
[383888710,1757159440761,-160.0,0.00038409,14]
[383888711,1757159440769,-160.0,0.00038409,14]
[383888712,1757159440779,-160.0,0.00038409,14]